bitfinex-derivatives/quotes_BNBF0:USTF0_20250401
["timestamp","ask_amount","ask_price","bid_price","bid_amount"]
[1743488068798,0.3287365,608.39,606.42,0.91580442]
[1743488069005,0.28641268,607.83,606.42,0.91580442]
[1743488069200,0.3287365,608.39,606.42,0.91580442]
[1743488069593,0.28641268,607.83,606.42,0.91580442]
[1743488069799,0.3287365,608.39,606.42,0.91580442]
[1743488070298,0.28641268,607.83,606.42,0.91580442]
[1743488070500,0.3287365,608.39,606.42,0.91580442]
[1743488071299,0.28632431,608.38,606.42,0.91580442]
[1743488075203,0.28632431,608.38,606.42,1.61280442]
[1743488076398,0.3287365,608.39,606.42,1.61280442]
[1743488076804,0.28641268,608.37,606.42,1.61280442]
[1743488078007,0.30232864,608.36,606.42,1.61280442]
[1743488079706,0.58874368,608.35,606.42,1.61280442]
[1743488079906,0.30232864,608.34,606.42,1.61280442]
[1743488080108,0.28641504,608.35,606.42,1.61280442]
[1743488080307,0.28641504,608.35,606.42,2.03480442]
[1743488082500,0.3287365,608.39,606.42,2.03480442]
[1743488082702,0.28641268,608.34,606.42,2.03480442]
[1743488085410,0.3287365,608.39,606.42,2.03480442]
[1743488085810,0.28633138,608.38,606.42,2.03480442]
[1743488088410,0.3287365,608.39,606.42,2.03480442]
[1743488088710,0.28641268,608.37,606.42,2.03480442]
[1743488091504,0.3287365,608.39,606.42,2.03480442]
[1743488091709,0.28641032,608.36,606.42,2.03480442]
[1743488097318,0.30231494,608.35,606.42,2.03480442]
[1743488097817,0.5887288,608.34,606.42,2.03480442]
[1743488098017,0.28641386,608.34,606.42,2.03480442]
[1743488098613,0.28641386,608.34,606.47,2.51290083]
[1743488098814,0.28641386,608.34,606.49,0.32976636]
[1743488101415,0.28641386,608.34,606.5,0.697]
[1743488101921,0.3287365,608.39,606.5,0.697]
[1743488102220,0.2864009,608.33,606.5,0.697]
[1743488102418,0.2864009,608.33,606.51,0.586]
[1743488103324,0.2864009,608.33,606.53,0.32974461]
[1743488103623,0.3287365,608.39,606.53,0.32974461]
[1743488103826,0.28639972,608.32,606.53,0.32974461]
[1743488106526,0.3287365,608.39,606.53,0.32974461]
[1743488106830,0.28639972,608.31,606.53,0.32974461]
[1743488107225,0.3287365,608.39,606.53,0.75174461]
[1743488107429,0.28630547,608.38,606.53,0.75174461]
[1743488109425,0.3287365,608.39,606.53,0.75174461]
[1743488109828,0.28639736,608.37,606.53,0.75174461]
[1743488112633,0.3287365,608.39,606.53,0.75174461]
[1743488112835,0.28639736,608.36,606.53,0.75174461]
[1743488115433,0.3287365,608.39,606.53,0.75174461]
[1743488115932,0.28639736,608.35,606.53,0.75174461]
[1743488116833,0.28639736,608.35,606.53,1.44874461]
[1743488118532,0.3287365,608.39,606.53,1.44874461]
[1743488118735,0.28639736,608.34,606.53,1.44874461]
[1743488121537,0.3287365,608.39,606.53,1.44874461]
[1743488121737,0.28639618,608.33,606.53,1.44874461]
[1743488122131,0.28639618,608.33,606.53,2.03474461]
[1743488124439,0.3287365,608.39,606.53,2.03474461]
[1743488124738,0.28639265,608.32,606.53,2.03474461]
[1743488130542,2.49605752,608.98,606.53,2.03474461]
[1743488130841,0.28630429,608.31,606.53,2.03474461]
[1743488131044,0.32842879,608.96,606.53,2.03474461]
[1743488131342,0.28629016,608.3,606.53,2.03474461]
[1743488131744,2.49605752,608.67,606.71,2.51290083]
[1743488131940,0.28628898,608.29,606.71,2.51290083]
[1743488132338,2.49605752,608.67,606.73,0.32963591]
[1743488132540,0.28628427,608.28,606.73,0.32963591]
[1743488132944,2.49605752,608.67,606.73,0.32963591]
[1743488133144,0.28628427,608.27,606.73,0.32963591]
[1743488133647,0.32842879,608.96,606.73,0.32963591]
[1743488133846,0.28628427,608.26,606.73,0.32963591]
[1743488134240,0.32842879,608.96,606.73,0.32963591]
[1743488134443,0.28628191,608.25,606.74,0.422]
[1743488134842,0.32842879,608.96,606.76,0.32961961]
[1743488135046,0.28626072,608.24,606.76,0.32961961]
[1743488135243,0.32842879,608.96,606.76,0.32961961]
[1743488135445,0.30219261,608.95,606.76,0.32961961]
[1743488135645,0.28625954,608.23,606.76,0.32961961]
[1743488136047,0.32842879,608.96,606.76,0.32961961]
[1743488136247,0.28625954,608.22,606.76,0.32961961]
[1743488136447,0.32842879,608.96,606.76,0.32961961]
[1743488136643,0.30219253,608.95,606.76,0.32961961]
[1743488136841,0.28625954,608.21,606.76,0.32961961]
[1743488137242,0.32842879,608.96,606.76,0.32961961]
[1743488137448,0.28625954,608.2,606.76,0.32961961]
[1743488137643,0.28625954,608.2,606.77,0.585]
[1743488137845,0.32842879,608.96,606.79,0.32960332]
[1743488138045,0.28625483,608.19,606.79,0.32960332]
[1743488138444,0.32842879,608.96,606.79,0.32960332]
[1743488138747,0.2862513,608.18,606.79,0.32960332]
[1743488138949,0.30218809,608.95,606.79,0.32960332]
[1743488139143,0.2862513,608.17,606.79,0.32960332]
[1743488139546,0.32843958,608.94,606.79,0.32960332]
[1743488139941,0.28625248,608.16,606.79,0.32960332]
[1743488140150,0.32843958,608.94,606.79,0.32960332]
[1743488140344,0.28625366,608.15,606.79,0.32960332]
[1743488140745,0.32843958,608.94,606.79,0.32960332]
[1743488140944,0.28625248,608.14,606.79,0.32960332]
[1743488141351,0.32843958,608.94,606.79,0.32960332]
[1743488141551,0.28625366,608.13,606.79,0.32960332]
[1743488141947,0.32843958,608.94,606.79,0.32960332]
[1743488142146,0.28625366,608.12,606.79,0.32960332]
[1743488142547,0.32843958,608.94,606.79,0.32960332]
[1743488142751,0.28624188,608.11,606.79,0.32960332]
[1743488143247,0.32843958,608.94,606.79,0.32960332]
[1743488143452,0.28622776,608.17,606.79,0.32960332]
[1743488143848,0.32843958,608.94,606.79,0.32960332]
[1743488144051,0.28622776,608.17,606.79,0.32960332]
[1743488144252,0.32843958,608.94,606.79,0.32960332]
[1743488144453,0.30216236,608.93,606.79,0.32960332]
[1743488144651,0.2862254,608.18,606.79,0.32960332]
[1743488144850,0.32843958,608.94,606.79,0.32960332]
[1743488145051,0.30216236,608.93,606.79,0.32960332]
[1743488145250,0.2862254,608.18,606.79,0.32960332]
[1743488145454,0.32843958,608.94,606.79,0.32960332]
[1743488145654,0.30215458,608.93,606.79,0.32960332]
[1743488145956,0.2862254,608.18,606.79,0.32960332]
[1743488146150,0.32843958,608.94,606.79,0.32960332]
[1743488146555,0.2862254,608.18,606.79,0.32960332]
[1743488146753,0.32843958,608.94,606.79,0.32960332]
[1743488146953,0.30215393,608.93,606.79,0.32960332]
[1743488147151,0.2862254,608.18,606.79,0.32960332]
[1743488147354,0.32843958,608.94,606.79,0.32960332]
[1743488147556,0.30215393,608.93,606.79,0.32960332]
[1743488147752,0.2862254,608.18,606.79,0.32960332]
[1743488147954,0.32843958,608.94,606.79,0.32960332]
[1743488148159,0.30215358,608.93,606.79,0.32960332]
[1743488148359,0.2862254,608.18,606.79,0.32960332]
[1743488148554,0.32843958,608.94,606.79,0.32960332]
[1743488148752,0.30215366,608.93,606.79,0.32960332]
[1743488148958,0.2862254,608.18,606.79,0.32960332]
[1743488149158,0.32843958,608.94,606.79,0.32960332]
[1743488149557,0.2862254,608.18,606.79,0.32960332]
[1743488149753,0.32843958,608.94,606.79,0.32960332]
[1743488149958,0.30215339,608.93,606.79,1.02660332]
[1743488150158,0.2862254,608.18,606.79,1.02660332]
[1743488150357,0.32843958,608.94,606.79,1.02660332]
[1743488150559,0.30215339,608.93,606.79,1.02660332]
[1743488150753,0.28622305,608.18,606.79,1.02660332]
[1743488150958,0.32843958,608.94,606.79,1.02660332]
[1743488151154,0.30215339,608.93,606.79,1.02660332]
[1743488151356,0.28622305,608.18,606.79,1.02660332]
[1743488151560,0.32843958,608.94,606.79,1.02660332]
[1743488151752,0.30215339,608.93,606.79,1.02660332]
[1743488151953,0.28622305,608.18,606.79,1.02660332]
[1743488152156,0.32843958,608.94,606.79,1.02660332]
[1743488152457,0.28622305,608.18,606.79,1.02660332]
[1743488152954,0.32843958,608.94,606.79,1.44860332]
[1743488153154,0.28622187,608.18,606.79,1.44860332]
[1743488153459,0.32843958,608.94,606.79,1.44860332]
[1743488153653,0.28622305,608.18,606.79,1.44860332]
[1743488154056,0.32843958,608.94,606.79,1.44860332]
[1743488154254,0.28622187,608.18,606.79,1.44860332]
[1743488154661,0.32843958,608.94,606.79,2.03360332]
[1743488154861,0.28622187,608.18,606.79,2.03360332]
[1743488155260,0.32843958,608.94,606.79,2.03360332]
[1743488155456,0.28622305,608.18,606.79,2.03360332]
[1743488155858,0.32843958,608.94,606.79,2.03360332]
[1743488156059,0.28622305,608.18,606.79,2.03360332]
[1743488156456,0.32843958,608.94,606.79,2.03360332]
[1743488156657,0.28622305,608.18,606.79,2.03360332]
[1743488157062,0.32843958,608.94,606.79,2.03360332]
[1743488157358,0.28622305,608.18,606.79,2.03360332]
[1743488157562,0.32843958,608.94,606.79,2.03360332]
[1743488157759,0.30215344,608.93,606.79,2.03360332]
[1743488158064,0.28622305,608.18,606.79,2.03360332]
[1743488158366,0.32843958,608.94,606.79,2.03360332]
[1743488158564,0.28622187,608.92,606.79,2.03360332]
[1743488158762,0.30215344,608.91,606.79,2.03360332]
[1743488159065,0.28622187,608.92,606.79,2.03360332]
[1743488159262,0.30216425,608.91,606.79,2.03360332]
[1743488160763,0.58839149,608.9,606.79,2.03360332]
[1743488160960,0.3021602,608.89,606.79,2.03360332]
[1743488163768,0.58839384,608.88,606.79,2.03360332]
[1743488163962,0.3021602,608.87,606.79,2.03360332]
[1743488166872,0.286236,608.86,606.79,2.03360332]
[1743488167269,0.3021602,608.85,606.79,2.03360332]
[1743488168373,0.30217223,608.84,606.79,2.03360332]
[1743488168570,0.30217223,608.85,606.79,2.03360332]
[1743488168770,0.30217223,608.84,606.79,2.03360332]
[1743488168971,0.30217223,608.85,606.79,2.03360332]
[1743488169176,0.30217223,608.84,606.79,2.03360332]
[1743488169372,0.30217223,608.85,606.79,2.03360332]
[1743488169874,0.58841058,608.84,606.79,2.03360332]
[1743488170174,0.30217223,608.83,606.79,2.03360332]
[1743488172781,0.30217223,608.82,606.79,2.03360332]
[1743488172983,0.28624071,608.82,606.79,2.03360332]
[1743488173176,0.30215998,608.81,606.79,2.03360332]
[1743488174880,0.30216008,608.8,606.79,2.03360332]
[1743488175083,0.30216008,608.81,606.79,2.03360332]
[1743488175782,0.28624306,608.8,606.79,2.03360332]
[1743488176177,0.30216008,608.79,606.79,2.03360332]
[1743488177986,0.28624306,608.8,606.79,2.03360332]
[1743488178186,0.30216005,608.79,606.79,2.03360332]
[1743488178986,0.30216005,608.93,606.79,2.03360332]
[1743488179183,0.30216005,608.92,606.79,2.03360332]
[1743488179488,0.30216005,608.91,606.79,2.03360332]
[1743488179686,0.30216005,608.93,606.79,2.03360332]
[1743488179882,0.30216005,608.92,606.79,2.03360332]
[1743488180088,0.30216005,608.93,606.79,2.03360332]
[1743488180288,2.49605752,608.91,606.79,2.03360332]
[1743488180484,0.30216005,608.9,606.79,2.03360332]
[1743488182792,0.30216005,608.9,606.79,3.91274284]
[1743488183493,2.8244971,608.94,606.79,3.91274284]
[1743488183894,0.28621716,608.93,606.79,3.91274284]
[1743488184288,0.58837111,608.93,606.79,3.91274284]
[1743488184488,0.30215395,608.93,606.79,3.91274284]
[1743488184991,0.28621834,608.92,606.79,3.91274284]
[1743488185192,0.30215395,608.91,606.79,3.91274284]
[1743488185387,0.30215395,608.91,606.81,2.51290083]
[1743488185587,0.30215395,608.91,606.91,0.32953815]
[1743488187693,0.30215395,608.93,606.91,0.32953815]
[1743488187888,0.28621599,608.9,606.91,0.32953815]
[1743488188090,0.30215395,608.89,606.91,0.75153815]
[1743488188291,0.30215395,608.89,606.91,1.33553815]
[1743488189595,0.30215395,608.89,606.91,2.03353815]
[1743488192799,0.28621599,608.9,606.91,2.03353815]
[1743488193598,0.32843958,608.94,606.91,2.03353815]
[1743488193793,0.28617244,608.89,606.91,2.03353815]
[1743488196500,0.32843958,608.94,606.91,2.03353815]
[1743488196898,0.28617244,608.88,606.91,2.03353815]
[1743488199605,0.32843958,608.94,606.91,2.03353815]
[1743488199804,0.28616774,608.87,606.91,2.03353815]
[1743488202509,0.32843958,608.94,606.91,2.03353815]
[1743488203006,0.28616303,608.86,606.91,2.03353815]
[1743488203200,0.32843958,608.94,606.91,2.03353815]
[1743488203399,0.58817133,608.93,606.91,2.03353815]
[1743488203603,0.30208476,608.92,606.91,2.03353815]
[1743488205802,0.58826544,608.91,606.91,2.03353815]
[1743488206107,0.30208476,608.9,606.91,2.03353815]
[1743488207609,0.32846655,608.89,606.91,2.03353815]
[1743488207808,0.30208476,608.88,606.91,2.03353815]
[1743488208002,0.32847734,608.87,606.91,2.03353815]
[1743488208203,0.30218357,608.86,606.91,2.03353815]
[1743488208407,0.6306663,608.86,606.91,2.03353815]
[1743488208609,0.30218357,608.85,606.91,2.03353815]
[1743488208810,0.58842781,608.85,606.91,2.03353815]
[1743488209010,0.30218357,608.84,606.91,2.03353815]
[1743488211911,0.28623482,608.83,606.91,2.03353815]
[1743488212211,0.30218357,608.82,606.91,2.03353815]
[1743488214809,0.30218357,608.85,606.91,2.03353815]
[1743488215010,0.30218357,608.84,606.91,2.03353815]
[1743488215211,0.28620775,608.81,606.91,2.03353815]
[1743488215507,0.30218357,608.8,606.91,2.03353815]
[1743488217815,0.5883395,608.79,606.91,2.03353815]
[1743488218012,0.30212587,608.78,606.91,2.03353815]
[1743488222415,0.3021016,608.77,606.91,2.03353815]
[1743488222610,0.3021016,608.78,606.91,2.03353815]
[1743488222911,0.3021016,608.77,606.91,2.03353815]
[1743488223109,0.3021016,608.78,606.91,2.03353815]
[1743488223310,0.3021016,608.77,606.91,2.03353815]
[1743488223516,0.32848273,608.86,606.91,2.03353815]
[1743488223517,0.3021016,608.78,606.91,4.54643898]
[1743488223817,0.28619009,608.76,606.92,1.87797516]
[1743488224009,0.28619009,608.76,606.94,0.32952186]
[1743488226511,2.49605752,609.23,606.94,0.32952186]
[1743488226716,0.6303261,609.22,606.94,0.32952186]
[1743488227015,0.28612186,608.75,606.94,0.32952186]
[1743488227217,0.32829402,609.21,606.95,0.584]
[1743488227421,0.30203625,609.2,607.06,0.32945672]
[1743488227615,0.32830479,609.19,607.06,0.32945672]
[1743488227913,0.30203625,609.18,607.06,0.75145672]
[1743488230219,0.32830479,609.19,607.06,0.75145672]
[1743488230418,0.30204624,609.18,607.06,0.75145672]
[1743488233424,0.32830479,609.19,607.06,0.75145672]
[1743488233624,0.30203725,609.18,607.06,0.75145672]
[1743488236619,0.32830479,609.19,607.06,0.75145672]
[1743488236825,0.30203523,609.18,607.06,0.75145672]
[1743488238929,0.28609951,609.17,607.06,0.75145672]
[1743488239228,0.30203523,609.16,607.06,1.44945672]
[1743488241426,0.28609951,609.17,607.06,1.44945672]
[1743488241633,0.30204927,609.16,607.06,1.44945672]
[1743488244233,0.30204927,609.16,607.06,2.03245672]
[1743488244630,0.32830479,609.19,607.06,2.03245672]
[1743488244836,0.30204901,609.18,607.06,2.03245672]
[1743488245037,0.28611598,609.15,607.06,2.03245672]
[1743488245335,0.30204901,609.14,607.06,2.03245672]
[1743488247842,0.32831018,609.18,607.06,2.03245672]
[1743488248141,0.30203469,609.17,607.06,2.03245672]
[1743488248544,0.58814361,609.17,607.06,2.03245672]
[1743488248737,0.30203469,609.16,607.06,2.03245672]
[1743488250636,0.32831018,609.18,607.06,2.03245672]
[1743488250835,0.30203469,609.17,607.06,2.03245672]
[1743488251137,0.28611362,609.15,607.06,2.03245672]
[1743488251339,0.30203462,609.14,607.06,2.03245672]
[1743488253740,0.30203462,609.17,607.06,2.03245672]
[1743488253944,0.30203462,609.16,607.06,2.03245672]
[1743488254145,0.28610774,609.13,607.06,2.03245672]
[1743488254341,0.30202002,609.12,607.06,2.03245672]
[1743488255842,0.28610774,609.13,607.06,2.03245672]
[1743488256046,0.30201671,609.12,607.06,2.03245672]
[1743488256841,0.58813033,609.11,607.06,2.03245672]
[1743488257045,0.30201671,609.1,607.06,2.03245672]
[1743488257447,0.28611362,609.11,607.06,2.03245672]
[1743488257646,0.30202351,609.1,607.06,2.03245672]
[1743488259848,0.58813949,609.09,607.06,2.03245672]
[1743488260147,0.30202351,609.08,607.06,2.03245672]
[1743488260648,0.30201902,609.07,607.06,2.03245672]
[1743488260852,0.30201902,609.06,607.06,2.03245672]
[1743488261148,0.30201902,609.05,607.06,2.03245672]
[1743488261342,0.28611598,609.09,607.06,2.03245672]
[1743488261343,0.30201902,609.08,607.06,2.03245672]
[1743488261547,0.30201902,609.07,607.06,2.03245672]
[1743488261849,0.30201902,609.06,607.06,2.03245672]
[1743488262044,0.30201902,609.08,607.06,2.03245672]
[1743488262250,0.30201902,609.07,607.06,2.03245672]
[1743488262446,0.30201902,609.06,607.06,2.03245672]
[1743488262644,0.30201902,609.08,607.06,2.03245672]
[1743488262844,0.28611833,609.05,607.06,2.03245672]
[1743488263050,0.30201902,609.04,607.06,2.03245672]
[1743488263250,0.30201902,609.04,607.14,2.51290083]
[1743488263550,0.30201902,609.04,607.16,0.32940246]
[1743488264050,0.30201902,609.04,607.18,2.51290083]
[1743488264251,0.30201902,609.04,607.2,0.32938076]
[1743488265447,0.30204001,609.03,607.2,0.32938076]
[1743488265754,0.30204001,609.02,607.2,0.32938076]
[1743488265953,0.30204001,609.01,607.21,0.422]
[1743488266149,0.30204001,609.0,607.21,3.51790083]
[1743488266349,0.30204001,609.01,607.23,0.32936449]
[1743488266548,0.30204001,609.0,607.23,0.32936449]
[1743488266749,0.30204001,609.01,607.23,0.32936449]
[1743488266953,0.30204001,609.0,607.23,0.32936449]
[1743488267149,0.30204001,608.99,607.23,0.32936449]
[1743488267349,0.30204001,608.98,607.23,0.32936449]
[1743488267548,0.30204001,609.04,607.23,0.32936449]
[1743488267752,0.30204001,609.03,607.23,0.32936449]
[1743488267951,0.30204001,609.02,607.23,0.32936449]
[1743488268150,0.30204001,609.01,607.23,0.32936449]
[1743488268347,0.30204001,609.0,607.23,0.32936449]
[1743488268653,0.30205035,608.99,607.23,0.32936449]
[1743488268847,0.28612774,608.99,607.23,0.32936449]
[1743488269051,0.30205035,608.98,607.23,0.32936449]
[1743488270253,0.30205062,608.97,607.23,0.32936449]
[1743488270453,0.30205062,608.96,607.23,0.32936449]
[1743488270656,0.30205062,608.98,607.23,0.32936449]
[1743488273856,0.28612774,608.99,607.23,0.32936449]
[1743488274558,2.49605752,609.17,607.23,0.32936449]
[1743488274755,2.82437309,609.17,607.23,0.32936449]
[1743488274958,0.28609951,608.98,607.23,0.32936449]
[1743488275157,2.82437309,609.17,607.23,0.32936449]
[1743488275558,0.28609951,608.97,607.23,0.32936449]
[1743488275758,2.82437309,609.17,607.23,0.32936449]
[1743488275960,0.32831557,609.17,607.23,0.32936449]
[1743488276156,0.28609951,608.96,607.23,0.32936449]
[1743488276359,0.32831557,609.17,607.23,0.32936449]
[1743488276861,0.28609951,608.95,607.23,0.32936449]
[1743488277056,0.32831557,609.17,607.23,0.32936449]
[1743488277361,0.28609951,608.94,607.23,0.32936449]
[1743488277563,0.32831557,609.17,607.23,0.32936449]
[1743488277860,0.28609951,608.93,607.23,0.32936449]
[1743488278262,0.32831557,609.17,607.23,0.32936449]
[1743488278462,0.28609951,608.92,607.23,0.32936449]
[1743488278960,0.32831557,609.17,607.23,0.32936449]
[1743488279161,0.28609951,608.91,607.23,0.32936449]
[1743488279360,0.32831557,609.17,607.23,0.32936449]
[1743488279762,0.28609951,608.9,607.23,0.32936449]
[1743488280059,0.32831557,609.17,607.23,0.32936449]
[1743488280363,0.28609951,608.89,607.23,0.32936449]
[1743488280559,0.32831557,609.17,607.23,0.32936449]
[1743488280957,0.28609951,608.88,607.23,0.32936449]
[1743488281159,0.32831557,609.17,607.23,0.32936449]
[1743488281557,0.28609951,608.87,607.23,0.32936449]
[1743488281757,0.32831557,609.17,607.23,0.32936449]
[1743488282162,0.28609951,608.86,607.23,0.32936449]
[1743488282363,0.32831557,609.17,607.23,0.32936449]
[1743488282765,0.28609951,608.85,607.23,0.32936449]
[1743488282964,0.32831557,609.17,607.23,0.32936449]
[1743488283360,0.28609951,608.84,607.23,0.32936449]
[1743488283560,0.32831557,609.17,607.23,0.32936449]
[1743488283766,0.30204708,609.16,607.23,0.32936449]
[1743488283969,0.28609951,608.83,607.23,0.32936449]
[1743488284265,0.32831557,609.17,607.23,0.32936449]
[1743488284468,0.28610069,608.82,607.23,0.32936449]
[1743488284866,0.32831557,609.17,607.23,0.32936449]
[1743488285067,0.28609951,608.81,607.23,0.32936449]
[1743488285468,0.32831557,609.17,607.23,0.32936449]
[1743488285768,0.28609951,608.8,607.23,0.32936449]
[1743488286069,0.32831557,609.17,607.23,0.32936449]
[1743488286269,0.28610069,608.79,607.23,0.32936449]
[1743488286764,0.32831557,609.17,607.23,0.32936449]
[1743488286962,0.28610069,608.78,607.23,0.32936449]
[1743488287363,0.32831557,609.17,607.24,0.582]
[1743488287561,0.28610069,608.77,607.26,0.32934821]
[1743488287967,0.32831557,609.17,607.26,0.32934821]
[1743488288168,0.28609833,608.76,607.26,0.32934821]
[1743488288568,0.32831557,609.17,607.26,0.32934821]
[1743488288761,0.28609833,608.75,607.26,0.32934821]
[1743488289164,0.32831557,609.17,607.26,0.32934821]
[1743488289369,0.28609833,608.74,607.26,0.32934821]
[1743488289667,0.32831557,609.17,607.26,0.32934821]
[1743488289870,0.3020325,609.16,607.26,0.32934821]
[1743488290069,0.28609833,608.73,607.26,0.32934821]
[1743488290268,0.32831557,609.17,607.26,0.32934821]
[1743488290466,0.30203277,609.16,607.26,0.32934821]
[1743488290669,0.28609833,608.72,607.26,0.32934821]
[1743488290868,0.32831557,609.17,607.26,0.32934821]
[1743488291070,0.30203478,609.16,607.26,0.32934821]
[1743488291268,0.28609833,608.71,607.26,0.32934821]
[1743488291466,0.32831557,609.17,607.26,0.32934821]
[1743488291665,0.30203351,609.16,607.26,0.32934821]
[1743488291867,0.28609833,608.7,607.26,0.32934821]
[1743488292067,0.32831557,609.17,607.26,0.32934821]
[1743488292271,0.30203351,609.16,607.26,0.32934821]
[1743488292568,0.28609833,608.69,607.26,0.32934821]
[1743488292774,0.32831557,609.17,607.26,0.32934821]
[1743488292968,0.28609951,608.68,607.26,0.32934821]
[1743488293373,0.32831557,609.17,607.26,0.32934821]
[1743488293574,0.28609716,608.67,607.26,0.32934821]
[1743488293969,0.32831557,609.17,607.26,0.32934821]
[1743488294168,0.28609716,608.66,607.26,0.32934821]
[1743488294475,0.32831557,609.17,607.26,0.32934821]
[1743488294771,0.28609833,608.65,607.26,0.32934821]
[1743488295175,0.32831557,609.17,607.26,0.32934821]
[1743488295476,0.28609716,608.64,607.26,0.32934821]
[1743488295674,0.32831557,609.17,607.27,1.121]
[1743488295868,0.30203445,609.16,607.29,0.32933195]
[1743488296074,0.28609833,608.63,607.29,0.32933195]
[1743488296274,0.32831557,609.17,607.29,0.32933195]
[1743488296470,0.30203314,609.16,607.29,0.32933195]
[1743488296675,0.28609481,608.62,607.29,0.32933195]
[1743488296875,0.32831557,609.17,607.29,0.32933195]
[1743488297071,0.30203314,609.16,607.29,0.32933195]
[1743488297276,0.28609481,608.61,607.29,0.32933195]
[1743488297473,0.32831557,609.17,607.29,0.32933195]
[1743488297676,0.30203109,609.16,607.29,0.32933195]
[1743488297876,0.28609481,608.6,607.29,0.32933195]
[1743488298074,0.32831557,609.17,607.29,0.32933195]
[1743488298276,0.3020308,609.16,607.29,0.32933195]
[1743488298573,0.28609481,608.59,607.29,0.32933195]
[1743488298775,0.32831557,609.17,607.29,0.32933195]
[1743488299077,0.28609481,608.58,607.29,0.32933195]
[1743488299281,0.32831557,609.17,607.29,0.32933195]
[1743488299472,0.30203895,609.16,607.29,0.32933195]
[1743488299778,0.28609481,608.57,607.29,0.32933195]
[1743488299980,0.32831557,609.17,607.29,0.32933195]
[1743488300276,0.28609481,608.56,607.29,0.32933195]
[1743488300475,0.32831557,609.17,607.29,0.32933195]
[1743488300678,0.30203949,609.16,607.29,0.32933195]
[1743488300872,0.28609481,608.55,607.29,0.32933195]
[1743488301074,0.32831557,609.17,607.29,0.32933195]
[1743488301276,0.30203895,609.16,607.29,0.32933195]
[1743488301474,0.28609481,608.54,607.29,0.32933195]
[1743488301675,0.32831557,609.17,607.29,0.32933195]
[1743488301873,0.30203922,609.16,607.29,0.32933195]
[1743488302078,0.28609481,608.53,607.29,0.32933195]
[1743488302274,0.32831557,609.17,607.29,0.32933195]
[1743488302474,0.30203689,609.16,607.29,0.32933195]
[1743488302675,0.28609481,608.52,607.29,0.32933195]
[1743488302874,0.32831557,609.17,607.29,0.32933195]
[1743488303073,0.30203761,609.16,607.29,0.32933195]
[1743488303277,0.28609598,608.51,607.29,0.32933195]
[1743488303474,0.32831557,609.17,607.29,0.32933195]
[1743488303673,0.30203205,609.16,607.29,0.32933195]
[1743488303873,0.28609481,608.5,607.29,0.32933195]
[1743488304073,0.32831557,609.17,607.29,0.32933195]
[1743488304278,0.30204353,609.16,607.29,0.32933195]
[1743488304472,0.28609481,608.49,607.29,0.32933195]
[1743488304672,0.32831557,609.17,607.29,0.32933195]
[1743488304874,0.30203428,609.16,607.29,0.32933195]
[1743488305075,0.28609481,608.48,607.29,0.32933195]
[1743488305380,0.32831557,609.17,607.29,0.32933195]
[1743488305577,0.28609481,608.47,607.29,0.32933195]
[1743488305980,0.32831557,609.17,607.29,0.91133195]
[1743488306281,0.28609363,608.46,607.29,0.91133195]
[1743488306782,2.49605752,609.11,607.29,0.91133195]
[1743488306982,0.28609245,608.45,607.29,0.91133195]
[1743488307177,2.49605752,609.11,607.29,0.91133195]
[1743488307379,0.30204073,609.1,607.29,0.91133195]
[1743488307580,0.28609951,608.44,607.29,0.91133195]
[1743488307779,0.30204073,609.1,607.29,0.91133195]
[1743488307780,2.49605752,609.11,607.29,0.91133195]
[1743488307982,0.30203214,609.1,607.29,0.91133195]
[1743488308178,0.28609951,608.43,607.29,0.91133195]
[1743488308383,2.49605752,609.12,607.29,0.91133195]
[1743488308578,0.3020327,609.11,607.29,0.91133195]
[1743488308782,0.28609951,608.42,607.29,0.91133195]
[1743488308977,2.49605752,609.12,607.29,0.91133195]
[1743488309182,0.30203214,609.11,607.29,0.91133195]
[1743488309485,0.28609833,608.41,607.29,0.91133195]
[1743488309783,2.49605752,609.12,607.29,0.91133195]
[1743488309981,0.28609833,608.4,607.29,0.91133195]
[1743488310186,2.49605752,609.12,607.29,0.91133195]
[1743488310485,0.28609833,608.39,607.29,0.91133195]
[1743488310883,2.49605752,609.11,607.29,0.91133195]
[1743488311185,0.28609833,608.38,607.29,0.91133195]
[1743488311389,2.49605752,609.11,607.29,0.91133195]
[1743488311587,0.30203214,609.1,607.29,0.91133195]
[1743488311885,0.28609951,608.37,607.29,0.91133195]
[1743488312083,2.49605752,609.11,607.29,0.91133195]
[1743488312286,0.28610069,608.37,607.29,0.91133195]
[1743488312681,2.49605752,609.1,607.29,0.91133195]
[1743488312884,0.28609951,608.37,607.29,0.91133195]
[1743488313282,2.49605752,609.1,607.29,0.91133195]
[1743488313481,0.28609951,608.37,607.29,0.91133195]
[1743488313881,2.49605752,609.1,607.29,0.91133195]
[1743488314086,0.28610069,608.37,607.29,0.91133195]
[1743488314282,2.49605752,609.1,607.29,0.91133195]
[1743488314483,0.30204336,609.09,607.29,0.91133195]
[1743488314686,0.28611245,608.36,607.29,0.91133195]
[1743488314886,2.49605752,609.1,607.29,0.91133195]
[1743488315182,0.28611245,608.35,607.29,0.91133195]
[1743488315483,2.49605752,609.07,607.29,0.91133195]
[1743488315686,0.30204459,609.06,607.29,0.91133195]
[1743488315884,0.28611009,608.34,607.29,0.91133195]
[1743488316084,2.49605752,609.07,607.29,0.91133195]